fUST/lending_fUST_20260207
["ID","MTS","AMOUNT","RATE_DAILY","PERIOD"]
[404686614,1770448231934,-300.0,0.00018424,2]
[404686616,1770448231943,-300.0,0.00018424,2]
[404686618,1770448231952,-6153.00393223,0.00018425,2]
[404686620,1770448231961,-150.0,0.00018518,2]
[404686622,1770448231971,-500.0,0.000188,2]
[404686624,1770448231980,-500.0,0.000188,2]
[404686626,1770448231989,-500.0,0.000188,2]
[404686628,1770448231998,-500.0,0.000188,2]
[404686630,1770448232007,-500.0,0.000188,2]
[404686632,1770448232016,-500.0,0.000188,2]
[404686635,1770448232026,-376.22884012,0.000188,2]
[404686638,1770448232036,-8188.56443503,0.000188,2]
[404686640,1770448232049,-303.10001603,0.000189,2]
[404686643,1770448232059,-303.10001607,0.00019089,2]
[404686644,1770448232069,-3064.9905255,0.00020039,2]
[404686647,1770448232081,-420.0,0.00020094,2]
[404686648,1770448232091,-1680.0,0.00020192,2]
[404686651,1770448232100,-2091.2622197,0.00020395,2]
[404686652,1770448232110,-177.0,0.00020518,2]
[404686654,1770448232119,-200.0,0.00020734,5]
[404686656,1770448232129,-587.0,0.00021915,2]
[404686658,1770448232138,-406.0,0.0002213,2]
[404686660,1770448232147,-204.0,0.00022518,2]
[404686662,1770448232157,-2091.26221969,0.00023117,2]
[404686664,1770448232169,-500.0,0.00023799,2]
[404686667,1770448232178,-500.0,0.0002388,2]
[404686668,1770448232188,-811.0,0.00023902,2]
[404686671,1770448232197,-12928.0,0.00024,2]
[404686672,1770448232207,-5670.2944339,0.00024352,2]
[404686674,1770448232216,-231.0,0.00024518,2]
[404686677,1770448232226,-1312.9782677,0.00024742,2]
[404686679,1770448232236,-2051.52854328,0.00024742,2]
[404686680,1770448232245,-2954.20110233,0.00024742,2]
[404686682,1770448232255,-4016.97494889,0.00024742,2]
[404686685,1770448232264,-500.0,0.00024891,2]
[404686687,1770448232274,-500.0,0.00024991,2]
[404686688,1770448232283,-389.93748134,0.00025528,10]
[404686690,1770448232293,-213.6521045,0.00025676,2]
[404686692,1770448232303,-2091.26221969,0.0002584,2]
[404686694,1770448232312,-1155.19,0.00026034,10]
[404686696,1770448232321,-1085.97,0.00026034,10]
[404686698,1770448232334,-904.97,0.00026034,10]
[404686700,1770448232342,-500.0,0.00026043,2]
[404686702,1770448232352,-387.23989284,0.00026043,2]
[404686704,1770448232361,-292.02067612,0.00026043,2]
[404686706,1770448232370,-1840.45551271,0.00026044,2]
[404686708,1770448232383,-2650.25593831,0.00026044,2]
[404686710,1770448232393,-3607.29280492,0.00026044,2]
[404686712,1770448232402,-4711.56611255,0.00026044,2]
[404686714,1770448232412,-5963.07586119,0.00026044,2]
[404686716,1770448232422,-7354.4602288,0.00026044,2]
[404686718,1770448232431,-9347.90901646,0.0002649,2]
[404686720,1770448232441,-5694.0,0.000265,2]
[404686722,1770448232450,-258.0,0.00026518,2]
[404686724,1770448232460,-156.983,0.00026561,13]
[404686726,1770448232469,-250.0,0.00026599,2]
[404686728,1770448232479,-250.0,0.00026599,2]
[404686731,1770448232489,-250.0,0.00026599,2]
[404686733,1770448232499,-250.0,0.00026599,2]
[404686734,1770448232508,-250.0,0.00026599,2]
[404686736,1770448232517,-250.0,0.00026599,2]
[404686738,1770448232527,-250.0,0.00026599,2]
[404686740,1770448232536,-194.72792766,0.00026599,2]
[404686742,1770448232546,-250.0,0.00026599,2]
[404686743,1770448232555,-201.93286099,0.00026599,2]
[404686745,1770448232565,-250.0,0.00026599,2]
[404686748,1770448232575,-209.40437684,0.00026599,2]
[404686750,1770448232588,-250.0,0.00026599,2]
[404686752,1770448232598,-217.15233878,0.00026599,2]
[404686753,1770448232607,-250.0,0.00026599,2]
[404686755,1770448232616,-225.18697532,0.00026599,2]
[404686757,1770448232626,-233.51889341,0.00026599,2]
[404686758,1770448232635,-242.15909246,0.00026599,2]
[404686759,1770448232645,-251.11897888,0.00026599,2]
[404686760,1770448232654,-260.4103811,0.00026599,2]
[404686761,1770448232664,-270.0455652,0.00026599,2]
[404686762,1770448232673,-280.03725112,0.00026599,2]
[404686763,1770448232683,-290.39862941,0.00026599,2]
[404686764,1770448232692,-301.1433787,0.00026599,2]
[404686765,1770448232702,-1667.773889,0.00026688,2]
[404686766,1770448232711,-5000.0,0.00027,2]
[404686767,1770448232720,-500.0,0.00027223,7]
[404686768,1770448232730,-500.0,0.0002733,7]
[404686769,1770448232739,-225.08598904,0.00027397,2]
[404686770,1770448232749,-150.0,0.00027397,5]
[404686771,1770448232759,-294.25261283,0.00027415,2]
[404686772,1770448232768,-218.46363047,0.00027415,2]
[404686773,1770448232778,-529.65470309,0.00027415,2]
[404686774,1770448232787,-393.23453484,0.00027415,2]
[404686775,1770448232797,-941.60836106,0.00027415,2]
[404686776,1770448232806,-699.0836175,0.00027415,2]
[404686777,1770448232816,-1469.79180109,0.00027415,2]
[404686778,1770448232827,-400.59285375,0.00027415,2]
[404686779,1770448232839,-721.06713674,0.00027415,2]
[404686780,1770448232848,-1091.22583419,0.00027415,2]
[404686781,1770448232858,-404.0969324,0.00027415,2]
[404686783,1770448232867,-727.37447832,0.00027415,2]
[404686785,1770448232876,-1293.11018368,0.00027415,2]
[404686787,1770448232887,-2020.48466201,0.00027415,2]
[404686789,1770448232896,-1281.89713199,0.00027415,2]
[404686791,1770448232906,-168.0,0.00027577,2]
[404686793,1770448232915,-176.224863,0.00027616,14]
[404686795,1770448232925,-9347.90901646,0.0002767,2]
[404686797,1770448232934,-39063.3527453,0.0002768,2]
[404686799,1770448232943,-2741.7282252,0.0002768,2]
[404686801,1770448232952,-520.1543376,0.0002768,2]
[404686803,1770448232961,-1667.773889,0.00027724,2]
[404686805,1770448232971,-250.0,0.00027945,5]
[404686807,1770448232980,-48330.6900631,0.0002799,2]
[404686867,1770448238050,-500.0,0.00021914,2]
[404686868,1770448238062,-500.0,0.00021914,2]
[404686869,1770448238072,-500.0,0.00021914,2]
[404686870,1770448238086,-500.0,0.00021914,2]
[404686871,1770448238096,-500.0,0.00021914,2]
[404686872,1770448238107,-332.60213303,0.00021914,2]
[404686883,1770448240266,-167.39786697,0.00021914,2]
[404686884,1770448240275,-500.0,0.00021914,2]
[404686885,1770448240285,-500.0,0.00021914,2]
[404686886,1770448240294,-500.0,0.00021914,2]
[404686887,1770448240303,-500.0,0.00021914,2]
[404686888,1770448240313,-500.0,0.00021914,2]
[404686889,1770448240322,-287.81904833,0.00021914,2]
[404686890,1770448240331,-89.61843633,0.00021914,2]
[404686919,1770448327743,1000.0,0.00014247,2]
[404686920,1770448327795,500.0,0.00014795,2]
[404686921,1770448327862,500.0,0.00013699,2]
[404686927,1770448564194,500.0,0.00013699,2]
[404686928,1770448627072,500.0,0.00013699,2]
[404686929,1770448627105,1000.0,0.00014247,2]
[404686930,1770448627172,502.57279576,0.00014795,2]
[404686932,1770449109781,199.29746568,0.0002825,110]
[404686933,1770449112583,179.34721832,0.00028129,63]
[404686934,1770449223916,500.0,0.00013699,2]
[404687009,1770449432175,-5000.0,0.00016081,2]
[404687011,1770449432184,-1200.0,0.00016242,2]
[404687012,1770449432193,-5000.0,0.00016243,2]
[404687013,1770449432203,-300.0,0.00016306,2]
[404687014,1770449432212,-289.0,0.00016306,2]
[404687015,1770449432221,-792.16709817,0.00016307,2]
[404687016,1770449432230,-4699.77,0.00016407,2]
[404687017,1770449432240,-9353.95736739,0.00016408,2]
[404687018,1770449432249,-150.0,0.00016607,2]
[404687019,1770449432259,-1238.85274118,0.00017,2]
[404687020,1770449432269,-177.0,0.00018607,2]
[404687021,1770449432278,-303.10001603,0.000189,2]
[404687022,1770449432287,-300.0,0.00019084,2]
[404687023,1770449432296,-300.0,0.00019084,2]
[404687024,1770449432305,-300.0,0.00019084,2]
[404687025,1770449432315,-300.0,0.00019084,2]
[404687026,1770449432324,-300.0,0.00019084,2]
[404687027,1770449432334,-300.0,0.00019084,2]
[404687028,1770449432343,-300.0,0.00019084,2]
[404687029,1770449432353,-300.0,0.00019084,2]
[404687030,1770449432362,-300.0,0.00019084,2]
[404687031,1770449432371,-300.0,0.00019084,2]
[404687032,1770449432380,-300.0,0.00019084,2]
[404687033,1770449432389,-300.0,0.00019084,2]
[404687034,1770449432399,-300.0,0.00019084,2]
[404687035,1770449432408,-300.0,0.00019084,2]
[404687036,1770449432419,-300.0,0.00019084,2]
[404687037,1770449432429,-303.10001603,0.00019089,2]
[404687038,1770449432439,-303.100016,0.00019278,2]
[404687039,1770449432448,-1266.7636208,0.00019849,2]
[404687040,1770449432457,-1261.63225497,0.0002,7]
[404687041,1770449432466,-204.0,0.00020607,2]
[404687042,1770449432475,-435.924786,0.0002093,2]
[404687043,1770449432484,-231.0,0.00022607,2]
[404687044,1770449432493,-587.451574,0.0002276,2]
[404687045,1770449432507,-600.0,0.00023076,10]
[404687046,1770449432517,-587.451574,0.00023718,2]
[404687047,1770449432526,-500.0,0.0002427,2]
[404687048,1770449432537,-258.0,0.00024607,2]
[404687049,1770449432546,-587.451574,0.00024676,2]
[404687050,1770449432555,-720.0,0.00025384,10]
[404687051,1770449432564,-587.451574,0.00025634,2]
[404687052,1770449432575,-1000.0,0.00026329,2]
[404687053,1770449432586,-500.0,0.00026572,2]
[404687054,1770449432595,-500.0,0.00026572,2]
[404687055,1770449432604,-500.0,0.00026572,2]
[404687056,1770449432614,-500.0,0.00026572,2]
[404687057,1770449432623,-500.0,0.00026572,2]
[404687058,1770449432632,-500.0,0.00026572,2]
[404687059,1770449432641,-500.0,0.00026572,2]
[404687060,1770449432651,-500.0,0.00026572,2]
[404687061,1770449432660,-500.0,0.00026572,2]
[404687062,1770449432671,-378.24542196,0.00026572,2]
[404687063,1770449432681,-500.0,0.00026572,2]
[404687064,1770449432690,-500.0,0.00026572,2]
[404687065,1770449432700,-500.0,0.00026572,2]
[404687066,1770449432709,-500.0,0.00026572,2]
[404687067,1770449432719,-587.451574,0.00026592,2]
[404687068,1770449432734,-194.72792766,0.00026596,2]
[404687069,1770449432743,-201.93286099,0.00026596,2]
[404687070,1770449432753,-209.40437684,0.00026596,2]
[404687071,1770449432762,-217.15233878,0.00026596,2]
[404687072,1770449432771,-225.18697532,0.00026596,2]
[404687073,1770449432781,-233.51889341,0.00026596,2]
[404687074,1770449432790,-242.15909246,0.00026596,2]
[404687075,1770449432799,-251.11897888,0.00026596,2]
[404687076,1770449432808,-260.4103811,0.00026596,2]
[404687077,1770449432818,-270.0455652,0.00026596,2]
[404687078,1770449432828,-280.03725112,0.00026596,2]
[404687079,1770449432837,-290.39862941,0.00026596,2]
[404687080,1770449432847,-301.1433787,0.00026596,2]
[404687081,1770449432856,-4.1653972,0.00026607,2]
[404687082,1770449432868,-280.8346028,0.00026607,2]
[404687083,1770449432878,-275.60462688,0.00026837,2]
[404687084,1770449432887,-159.43377854,0.00026837,2]
[404687085,1770449432897,-217.12699178,0.00026846,2]
[404687086,1770449432912,-282.87300822,0.00026846,2]
[404687087,1770449432922,-156.98330045,0.00026849,14]
[404687088,1770449432932,-5000.0,0.00027,2]
[404687089,1770449432941,-3000.0,0.00027,2]
[404687090,1770449432951,-301.6007455,0.0002712,2]
[404687091,1770449432960,-275.60462688,0.0002716,17]
[404687092,1770449432969,-1000.0,0.00027397,2]
[404687093,1770449432979,-150.0,0.00027397,5]
[404687094,1770449432988,-267.48061496,0.00027415,2]
[404687108,1770449438277,-1735.48365377,0.00027415,2]
[404687109,1770449438287,-160.27488026,0.00027415,2]
[404687111,1770449438296,-972.87478303,0.00027415,2]
[404687112,1770449438339,-1936.62313026,0.00027415,2]
[404687113,1770449438349,-2881.38427842,0.00027415,2]
[404687114,1770449438358,-3960.14993753,0.00027415,2]
[404687115,1770449438369,-5167.268294,0.00027415,2]
[404687116,1770449438378,-8375.2986674,0.00027453,2]
[404687117,1770449438388,-275.60462688,0.00027483,32]
[404687118,1770449438397,-587.451574,0.00027551,2]
[404687119,1770449438407,-161.0,0.00027644,14]
[404687120,1770449438417,-275.60462688,0.00027806,48]
[404687121,1770449438427,-864.0,0.00027923,30]
[404687122,1770449438436,-250.0,0.00027945,5]
[404687123,1770449438446,-2000.0,0.00027989,2]
[404687124,1770449438456,-10391.07567195,0.00028,2]
[404687125,1770449438471,-1647.49602726,0.00028,2]
[404687135,1770449440464,-500.0,0.00026572,2]
[404687136,1770449440474,-322.3258369,0.00026572,2]
[404687137,1770449440483,-500.0,0.00026572,2]
[404687138,1770449440492,-5000.0,0.00027141,2]
[404687139,1770449440502,-61448.86090514,0.00028,2]
[404687140,1770449440518,-1360.0,0.00028,2]
[404687141,1770449440536,-802.26162827,0.00028,2]
[404687162,1770449446290,-1850.47695586,0.00028,2]
[404687172,1770449446946,-7575.20935937,0.00028,2]
[404687175,1770449447530,-97735.28424748,0.00028,2]
[404687176,1770449447540,-855.0,0.00028,3]
[404687177,1770449447550,-46438.35927544,0.00028,2]
[404687178,1770449532934,500.0,0.00013699,2]
[404687179,1770449532979,1025.25645381,0.00014247,2]
[404687187,1770449769307,998.399999,0.00014,2]
[404687189,1770450178340,154.99,0.00030137,120]
[404687191,1770450342154,60104.71,0.0001,2]
[404687219,1770450632485,-3024.93540208,0.00023345,2]
[404687393,1770450640669,-1975.06459792,0.00023345,2]
[404687395,1770450640679,-11727.53540208,0.00023581,2]
[404687469,1770450649719,-521.85091838,0.00023581,2]
[404687470,1770450649729,-500.0,0.0002388,2]
[404687471,1770450649741,-200.0,0.00025868,11]
[404687472,1770450649751,-1000.0,0.00026254,30]
[404687473,1770450649761,-1653.7502574,0.00026373,2]
[404687474,1770450649771,-150.0,0.00027397,5]
[404687475,1770450649780,-169.37538599,0.00027415,2]
[404687476,1770450649790,-155.0,0.00027644,25]
[404687477,1770450649799,-1541.69280674,0.00027889,2]
[404687478,1770450649809,-250.0,0.00027945,5]
[404687479,1770450649818,-500.0,0.00027989,2]
[404687480,1770450649828,-500.0,0.00027989,2]
[404687481,1770450649838,-500.0,0.00027989,2]
[404687482,1770450649847,-500.0,0.00027989,2]
[404687483,1770450649856,-500.0,0.00027989,2]
[404687484,1770450649869,-500.0,0.00027989,2]
[404687485,1770450649879,-500.0,0.00027989,2]
[404687486,1770450649889,-287.81904833,0.00027989,2]
[404687487,1770450649899,-198.54314838,0.00027989,2]
[404687488,1770450649910,-208.69393577,0.00027989,2]
[404687489,1770450649919,-500.0,0.00027989,2]
[404687490,1770450649929,-500.0,0.00027989,2]
[404687491,1770450649938,-500.0,0.00027989,2]
[404687492,1770450649949,-500.0,0.00027989,2]
[404687493,1770450649959,-500.0,0.00027989,2]
[404687494,1770450649968,-500.0,0.00027989,2]
[404687495,1770450649978,-500.0,0.00027989,2]
[404687496,1770450649988,-500.0,0.00027989,2]
[404687497,1770450649998,-206.05163694,0.00027989,2]
[404687498,1770450650007,-500.0,0.00027989,2]
[404687499,1770450650017,-500.0,0.00027989,2]
[404687500,1770450650026,-500.0,0.00027989,2]
[404687501,1770450650036,-427.07245605,0.00027989,2]
[404687502,1770450650045,-500.0,0.00027989,2]
[404687503,1770450650055,-3003.96040602,0.0002799,2]
[404687511,1770451357509,-619.49563616,0.0002307,2]
[404687512,1770451357522,-635.50436384,0.0002307,2]
[404687513,1770451357531,-619.49563616,0.00024211,2]
[404687546,1770451837898,-2245.61918771,0.00023492,2]
[404687547,1770451837908,-11213.78913552,0.00024456,2]
[404687548,1770451837920,-200.0,0.00025915,13]
[404687549,1770451837932,-691.4359864,0.00026421,2]
[404687550,1770451837942,-3245.0,0.000268,2]
[404687551,1770451837952,-5000.0,0.00027,2]
[404687552,1770451837962,-150.0,0.00027397,5]
[404687553,1770451837973,-2285.7633004,0.00027626,2]
[404687554,1770451837982,-500.0,0.00027678,2]
[404687555,1770451837993,-500.0,0.00027678,2]
[404687556,1770451838002,-500.0,0.00027678,2]
[404687557,1770451838011,-500.0,0.00027678,2]
[404687558,1770451838021,-500.0,0.00027678,2]
[404687559,1770451838030,-500.0,0.00027678,2]
[404687560,1770451838040,-500.0,0.00027678,2]
[404687561,1770451838051,-399.78506286,0.00027678,2]
[404687562,1770451838061,-169.25071439,0.00027678,2]
[404687563,1770451838071,-500.0,0.00027678,2]
[404687564,1770451838081,-500.0,0.00027678,2]
[404687565,1770451838091,-500.0,0.00027678,2]
[404687566,1770451838100,-484.84861749,0.00027678,2]
[404687567,1770451838110,-500.0,0.00027678,2]
[404687568,1770451838119,-178.47270105,0.00027678,2]
[404687569,1770451838129,-609.7540284,0.00027678,2]
[404687570,1770451838139,-500.0,0.00027678,2]
[404687571,1770451838151,-500.0,0.00027678,2]
[404687572,1770451838161,-500.0,0.00027678,2]
[404687573,1770451838171,-500.0,0.00027678,2]
[404687574,1770451838182,-500.0,0.00027678,2]
[404687575,1770451838191,-500.0,0.00027678,2]
[404687576,1770451838201,-500.0,0.00027678,2]
[404687577,1770451838211,-500.0,0.00027678,2]
[404687578,1770451838220,-500.0,0.00027678,2]
[404687579,1770451838230,-500.0,0.00027678,2]
[404687580,1770451838242,-500.0,0.00027678,2]
[404687581,1770451838252,-500.0,0.00027678,2]
[404687582,1770451838263,-212.79553358,0.00027678,2]
[404687583,1770451838276,-500.0,0.00027678,2]
[404687584,1770451838286,-500.0,0.00027678,2]
[404687585,1770451838296,-500.0,0.00027678,2]
[404687586,1770451838306,-500.0,0.00027678,2]
[404687587,1770451838316,-500.0,0.00027678,2]
[404687588,1770451838325,-500.0,0.00027678,2]
[404687589,1770451838335,-500.0,0.00027678,2]
[404687590,1770451838346,-304.87569478,0.0002768,2]
[404687591,1770451838356,-289.75471739,0.0002768,2]
[404687592,1770451838366,-8722.0,0.0002768,2]
[404687593,1770451838375,-542.00123517,0.0002768,2]
[404687594,1770451838385,-331.14824845,0.0002768,2]
[404687595,1770451838395,-846.03005302,0.00027872,2]
[404687596,1770451838405,-250.0,0.00027945,5]
[404687597,1770451838415,-754.15,0.0002798,10]
[404687598,1770451838425,-628.45,0.0002798,10]
[404687599,1770451838435,-157.56019233,0.00027989,2]
[404687600,1770451838444,-500.0,0.00027989,2]
[404687601,1770451838453,-168.54029468,0.00027989,2]
[404687602,1770451838462,-204.41447328,0.00027989,2]
[404687603,1770451838472,-37070.81457584,0.0002799,2]
[404687611,1770451840109,-523.71,0.0002798,10]
[404687612,1770451840119,-4691.53971353,0.0002799,2]
[404687618,1770451846155,-1638.08,0.0002799,2]
[404687619,1770451846302,-5264.91524151,0.0002799,2]
[404687620,1770451846313,-15197.65317374,0.00028,2]
[404687621,1770451846324,-1743.92204958,0.00028,2]
[404687623,1770451848960,-588.67739974,0.00028,2]
[404687626,1770451863665,500.0,0.00013699,2]
[404687639,1770452370513,200.0,0.00029403,120]
[404687648,1770452812116,-150.0,0.00023366,2]
[404687649,1770452812137,-1000.0,0.00023993,30]
[404687650,1770452812157,-1348.98120595,0.00024899,2]
[404687651,1770452812179,-192.0,0.00024987,2]
[404687652,1770452812199,-300.0,0.00024987,2]
[404687653,1770452812222,-11067.54161644,0.00024988,2]
[404687654,1770452812242,-1676.76639861,0.0002499,2]
[404687736,1770453038153,-250.0,0.00021918,45]
[404687738,1770453038163,-500.0,0.00023582,2]
[404687740,1770453038171,-150.0,0.00024286,2]
[404687741,1770453038181,-2638.99357455,0.0002499,2]
[404687743,1770453038191,-10580.42960194,0.0002499,2]
[404687745,1770453038200,-230.55,0.0002499,10]
[404687746,1770453038210,-398.0,0.0002499,10]
[404687747,1770453038220,-331.67,0.0002499,10]
[404687748,1770453038229,-300.0,0.00024998,2]
[404687749,1770453038239,-1113.76609048,0.00024999,2]
[404687750,1770453038249,-467.97820628,0.00024999,2]
[404687751,1770453038259,-178.86155871,0.00024999,2]
[404687752,1770453038269,-500.0,0.00024999,2]
[404687753,1770453038279,-500.0,0.00024999,2]
[404687754,1770453038288,-301.42172595,0.00024999,2]
[404687755,1770453038297,-6645.25326049,0.00025,2]
[404687779,1770453045221,-276.39,0.0002499,10]
[404687780,1770453045234,-194.36529329,0.00025,2]
[404687785,1770453046028,-13017.82466481,0.00025,2]
[404687786,1770453046043,-1109.74771654,0.00025,2]
[404687787,1770453046057,-149032.80906487,0.00025,2]
[404687788,1770453046068,-176.43,0.00025,7]
[404687789,1770453046079,-231.59,0.00025,7]
[404687790,1770453046090,-1041.66666667,0.00025975,2]
[404687791,1770453046100,-177.0,0.00026286,2]
[404687792,1770453046110,-189.1616724,0.00026528,2]
[404687793,1770453046123,-516.90171906,0.0002659,2]
[404687794,1770453046134,-194.72792766,0.00026599,2]
[404687795,1770453046144,-201.93286099,0.00026599,2]
[404687796,1770453046155,-209.40437684,0.00026599,2]
[404687797,1770453046165,-217.15233878,0.00026599,2]
[404687798,1770453046177,-225.18697532,0.00026599,2]
[404687799,1770453046188,-233.51889341,0.00026599,2]
[404687800,1770453046200,-242.15909246,0.00026599,2]
[404687801,1770453046212,-251.11897888,0.00026599,2]
[404687802,1770453046223,-260.4103811,0.00026599,2]
[404687803,1770453046234,-270.0455652,0.00026599,2]
[404687804,1770453046245,-280.03725112,0.00026599,2]
[404687805,1770453046256,-290.39862941,0.00026599,2]
[404687806,1770453046267,-301.1433787,0.00026599,2]
[404687807,1770453046279,-217.962393,0.00026639,2]
[404687808,1770453046290,-5000.0,0.00027,2]
[404687809,1770453046301,-220.48,0.00027058,15]
[404687810,1770453046312,-150.0,0.00027397,5]
[404687811,1770453046323,-405.0,0.0002768,3]
[404687812,1770453046335,-151.0,0.00027848,7]
[404687813,1770453046346,-151.0,0.00027848,7]
[404687814,1770453046357,-151.0,0.00027848,7]
[404687815,1770453046367,-151.0,0.00027848,7]
[404687816,1770453046377,-1759.3290497,0.00027848,2]
[404687817,1770453046388,-76474.78879346,0.00027858,2]
[404687818,1770453046399,-151.0,0.00027858,7]
[404687819,1770453046409,-151.0,0.00027858,7]
[404687820,1770453046421,-151.0,0.00027858,7]
[404687821,1770453046431,-151.0,0.00027858,7]
[404687823,1770453046442,-441.64,0.000279,14]
[404687824,1770453046454,-250.0,0.00027945,5]
[404687825,1770453046465,-188.50769153,0.00027989,2]
[404687826,1770453046476,-1009.25671846,0.0002799,2]
[404687827,1770453046487,-224.0,0.00027996,3]
[404687828,1770453046498,-224.0,0.00027996,3]
[404687829,1770453046508,-224.0,0.00027996,3]
[404687830,1770453046519,-224.0,0.00027996,3]
[404687831,1770453046531,-224.0,0.00027996,3]
[404687832,1770453046541,-224.0,0.00027996,3]
[404687833,1770453046552,-224.0,0.00027996,3]
[404687834,1770453046564,-224.0,0.00027996,3]
[404687835,1770453046575,-224.0,0.00027996,3]
[404687836,1770453046586,-224.0,0.00027996,3]
[404687837,1770453046597,-224.0,0.00027996,3]
[404687838,1770453046607,-224.0,0.00027996,3]
[404687839,1770453046619,-224.0,0.00027996,3]
[404687840,1770453046630,-224.0,0.00027996,3]
[404687841,1770453046641,-224.0,0.00027996,3]
[404687842,1770453046652,-224.0,0.00027996,3]
[404687843,1770453046663,-224.0,0.00027996,3]
[404687844,1770453046674,-224.0,0.00027996,3]
[404687845,1770453046685,-224.0,0.00027996,3]
[404687846,1770453046696,-224.0,0.00027996,3]
[404687847,1770453046707,-224.0,0.00027996,3]
[404687848,1770453046718,-224.0,0.00027996,3]
[404687849,1770453046729,-224.0,0.00027996,3]
[404687850,1770453046740,-224.0,0.00027996,3]
[404687851,1770453046755,-224.0,0.00027996,3]
[404687852,1770453046766,-224.0,0.00027996,3]
[404687853,1770453046778,-224.0,0.00027996,3]
[404687854,1770453046790,-224.0,0.00027996,3]
[404687855,1770453046800,-224.0,0.00027996,3]
[404687856,1770453046809,-224.0,0.00027996,3]
[404687857,1770453046820,-224.0,0.00027996,3]
[404687858,1770453046829,-224.0,0.00027996,3]
[404687859,1770453046839,-224.0,0.00027996,3]
[404687860,1770453046847,-224.0,0.00027996,3]
[404687861,1770453047017,-224.0,0.00027996,3]
[404687862,1770453047033,-224.0,0.00027996,3]
[404687863,1770453047043,-224.0,0.00027996,3]
[404687864,1770453047052,-224.0,0.00027996,3]
[404687865,1770453047062,-224.0,0.00027996,3]
[404687866,1770453047071,-224.0,0.00027996,3]
[404687867,1770453047080,-224.0,0.00027996,3]
[404687868,1770453047090,-224.0,0.00027996,3]
[404687869,1770453047099,-224.0,0.00027996,3]
[404687870,1770453047108,-224.0,0.00027996,3]
[404687871,1770453047118,-308.29052426,0.00027996,3]
[404687872,1770453047127,-3209.96415745,0.00028,2]
[404687873,1770453047323,-1748.365469,0.00028,2]
[404687874,1770453047334,-39206.89082347,0.00028,2]
[404687876,1770453099635,3175.0,0.000301,120]
[404687878,1770453605230,1000.0,0.000148,2]
[404687879,1770453975530,153.2,0.00013699,2]
[404687880,1770454039603,158.0,0.00013699,2]
[404687881,1770454039632,160.0,0.00013699,2]
[404687882,1770454039709,250.0,0.00013699,2]
[404687883,1770454040093,155.0,0.00013699,2]
[404687884,1770454040126,158.0,0.00013699,2]
[404687885,1770454040165,160.2,0.00013699,2]
[404687886,1770454040439,158.0,0.00013699,2]
[404687887,1770454162457,160.0,0.00013699,2]
[404687888,1770454162482,160.0,0.00013699,2]
[404687889,1770454218114,158.2,0.00013699,2]
[404687890,1770454218912,158.0,0.00013273,2]
[404687891,1770454218939,158.0,0.00013699,2]
[404687917,1770454231917,-500.0,0.00024974,2]
[404687919,1770454231927,-150.0,0.00024986,2]
[404687921,1770454231936,-300.0,0.00024998,2]
[404687923,1770454231945,-300.0,0.00024998,2]
[404687925,1770454231954,-300.0,0.00024998,2]
[404687927,1770454231964,-5261.83051392,0.00024999,2]
[404687929,1770454231975,-326.59798026,0.00024999,2]
[404687931,1770454231986,-462.228,0.00024999,2]
[404687974,1770454238118,-3506.03520516,0.00024999,2]
[404687975,1770454238128,-1938.79,0.00024999,30]
[404687976,1770454238138,-1938.79,0.00024999,30]